Cogmind - Beta 15 @@@ ROGUE MODE // 2025.06.08 @ 03:46:35 Player: laeb2 Result: Destroyed by H-66 Slayer with Gauss Rifle Performance ------------- Evolutions (4) 2000 Regions Visited (8) 1600 Robots Destroyed (105) 525 Value Destroyed (5109) 5109 Prototype IDs (11) 220 Alien Tech Used (0) 0 Bonus (3220) 3220 TOTAL SCORE: 12674 Bonus ------- High Alert Combat Kills 218 Follower Combat Kills 1302 Entered Garrisons 200 Used RIF Installer 1000 Entered DSFs 500 Cogmind --------- Core Integrity 0/850 Matter 238/300 Energy 180/180 System Corruption 8% Temperature Cool (0) Movement Treading (157) Location -6/Factory Parts ------- > --- POWER (1) -------- Light Particle Reactor > --- PROPULSION (4) --- Armored Heavy Treads Advanced Heavy Treads > --- UTILITY (8) ------ Large Storage Unit Advanced Targeting Computer Graphene Brace Relay Coupler [Swarmer] (28) Relay Coupler [Sentry] (12) Relay Coupler [Hunter] (3) Relay Coupler [Proto] (9) > --- WEAPON (2) ------- Hypervelocity Mass Driver Advanced Remote Datajack (fused) > --- INVENTORY (15) --- F-cell Engine F-cell Engine Wheel Large Matter Pod (10) Advanced Melee Analysis Suite Improved Reaction Control System Improved Hacking Suite Relay Coupler [Swarmer] (25) Relay Coupler [Sentry] (19) Relay Coupler [Demolisher] (27) Relay Coupler [Specialist] (35) Relay Coupler [Proto] (9) Compact HERF Cannon Flail Peak State ------------ > --- POWER ------------ Light Particle Reactor > --- PROPULSION ------- Armored Heavy Treads Advanced Heavy Treads > --- UTILITY ---------- Large Storage Unit Advanced Targeting Computer Graphene Brace Relay Coupler [Swarmer] Relay Coupler [Grunt] Relay Coupler [Sentry] Relay Coupler [Hunter] Relay Coupler [Proto] > --- WEAPON ----------- Hypervelocity Mass Driver Advanced Remote Datajack > --- INVENTORY -------- F-cell Engine F-cell Engine Wheel Large Matter Pod Advanced Melee Analysis Suite Improved Reaction Control System Relay Coupler [Swarmer] Relay Coupler [Sentry] Relay Coupler [Demolisher] Relay Coupler [Specialist] Relay Coupler [Proto] Compact HERF Cannon Flail [Rating: 96] Favorites ----------- Power Light Particle Reactor Engine Heavy Ion Engine Reactor Light Particle Reactor Propulsion Aluminum Leg Treads Light Treads Leg Aluminum Leg Wheel Armored Wheel Hover Unit Gravmag System Utility Authchip [R/Combat] Device Graphene Brace Storage Large Storage Unit Processor Advanced Visual Processing Unit Hackware Authchip [R/Combat] Protection Hardened Light Armor Plating Weapon Flail Energy Gun Improved EM Shotgun Energy Cannon Advanced Beam Cannon Ballistic Gun Autogun Ballistic Cannon Advanced Assault Cannon Launcher Heavy Missile Launcher Special Weapon Advanced Remote Datajack Impact Weapon Flail Build | -11 -10 -9 -8 -7 -7 -6 -6 -6 ------- Run | Yrd Mat Mat Mat Fac DSF Fac Gar Fac Slots Evolved 8 | . . 2 2 2 . 2 . . Power . | . . . . . . . . . Propulsion 2 | . . 2 . . . . . . Utility 6 | . . . 2 2 . 2 . . Weapon . | . . . . . . . . . Parts Attached 106 | 8 9 14 12 . 10 14 34 5 Power 6 | 1 1 1 . . . 1 2 . Engine 5 | 1 1 1 . . . 1 1 . Core . | . . . . . . . . . Reactor 1 | . . . . . . . 1 . Propulsion 35 | 4 2 5 5 . 5 5 9 . Treads 10 | . 2 2 . . . . 6 . Leg 17 | 2 . 3 4 . 5 2 1 . Wheel 3 | 2 . . 1 . . . . . Hover 5 | . . . . . . 3 2 . Flight . | . . . . . . . . . Utility 37 | 1 2 1 5 . 3 6 15 4 Device 7 | . . . 2 . 2 . 3 . Storage 4 | 1 1 . . . . 1 . 1 Processor 2 | . . . 1 . . . 1 . Hackware 19 | . . . . . . 5 11 3 Protection 5 | . 1 1 2 . 1 . . . Artifact . | . . . . . . . . . Weapon 28 | 2 4 7 2 . 2 2 8 1 Energy Gun 10 | 2 2 3 2 . . . 1 . Energy Cannon 1 | . . 1 . . . . . . Ballistic Gun 2 | . . 1 . . . . 1 . Ballistic Cannon 10 | . 2 . . . 2 2 3 1 Launcher 1 | . . . . . . . 1 . Special Weapon 2 | . . . . . . . 2 . Impact Weapon 2 | . . 2 . . . . . . Slashing Weapon . | . . . . . . . . . Piercing Weapon . | . . . . . . . . . Special Melee Weapon . | . . . . . . . . . Unidentified Prototypes 7 | . . 4 2 . . . 1 . Parts Lost 39 | . . 1 5 . 4 13 16 . Power 1 | . . . . . . . 1 . Propulsion 20 | . . 1 4 . 3 6 6 . Utility 9 | . . . 1 . 1 3 4 . Weapon 9 | . . . . . . 4 5 . Highest Loss Streak 9 | . . 1 2 . 3 9 5 . To Critical Strikes 2 | . . . . . . 2 . . Average Backups 11 | 4 12 14 14 15 14 8 9 10 Power . | 1 . . 1 2 1 . . . Propulsion 1 | 2 3 3 1 1 1 . . . Utility 5 | . 5 7 7 7 6 3 4 7 Weapon 2 | . 2 1 2 4 4 1 3 1 Tool/Special . | . . . . . . . . . Unused Backups 38 | . 6 5 . . 4 . 9 14 Power 3 | . . . . . 1 . . 2 Propulsion 5 | . 1 1 . . . . 2 1 Utility 17 | . 2 1 . . 1 . 3 10 Weapon 12 | . 3 3 . . 2 . 3 1 Tool/Special 1 | . . . . . . . 1 . Average Slot Usage (%) 87 | . 98 97 98 84 94 71 83 85 Engine 4 | . 14 11 9 7 7 3 2 . Reactor 1 | . . . . . . . 1 6 Treads 8 | . 20 8 . . . . 8 13 Leg 10 | . 8 32 33 30 26 8 2 . Hover 2 | . . . . . . 8 4 . Device 4 | . . . 7 7 12 9 4 5 Storage 7 | . 17 11 9 7 7 3 6 6 Processor 5 | . . . 7 7 7 6 6 6 Hackware 20 | . . . . . . 19 32 32 Protection 3 | . 9 11 10 7 16 1 . . Energy Gun 2 | . 17 5 . . . . . . Ballistic Cannon 5 | . 9 11 . . 12 3 3 5 Special Weapon 2 | . . . . . . . 2 5 Impact Weapon 4 | . . 3 17 15 2 4 3 . Peak Build Rating 96 | 6 12 20 28 28 45 52 89 96 Average Rating 49 | 4 9 15 24 28 36 38 56 92 On Entrance 30 | . 6 10 16 28 28 45 52 89 Naked Turns . | . . . . . . . . . Heaviest Build 58 | 13 36 39 42 40 58 53 35 52 Greatest Support 145 | 26 40 80 48 47 63 63 145 130 Greatest Overweight (x) 6 | . 1 1 3 . 1 3 6 . Average Overweight (x) . | . . . . . . . . . Largest Inventory Capacity 15 | 8 15 15 15 15 15 15 10 15 Average Capacity 12 | 7 14 15 15 15 15 9 10 13 Most Carried 15 | 7 15 15 15 15 15 15 10 14 Average Carried 11 | 4 12 14 14 15 14 8 9 10 Final Capacity 15 | 8 15 15 15 15 15 10 10 15 Final Carried 15 | 6 15 15 15 15 15 6 10 14 Class Distribution -------------------- 54% | Bothacker-Mutant 45% | Mutant Dominant Class ---------------- Mutant | -10/Materials Mutant | -9/Materials Mutant | -8/Materials Mutant | -7/Factory Mutant | -7/DSF Mutant | -6/Factory Bothacker-Mutant | -6/Garrison Bothacker-Mutant | -6/Factory Resources | -11 -10 -9 -8 -7 -7 -6 -6 -6 ----------- Run | Yrd Mat Mat Mat Fac DSF Fac Gar Fac Matter Collected 4403 | 280 259 687 150 . 720 158 1474 675 Remotely . | . . . . . . . . . Salvage Created 4036 | 154 374 791 539 . 658 161 413 946 Parts 176 | 9 17 43 12 . 30 5 18 42 Haulers Intercepted 7 | . 1 2 1 . . . . 3 Recyclers Shooed 1 | 1 . . . . . . . . Parts Field Recycled . | . . . . . . . . . Retrieved Matter . | . . . . . . . . . Parts Self-Destructed . | . . . . . . . . . Prevented . | . . . . . . . . . Kills | -11 -10 -9 -8 -7 -7 -6 -6 -6 ------- Run | Yrd Mat Mat Mat Fac DSF Fac Gar Fac Combat Hostiles Destroyed 81 | . 10 22 11 . 15 3 13 7 Melee 7 | . . 1 6 . . . . . Guns 11 | . 5 6 . . . . . . Cannons 47 | . 5 12 . . 14 1 8 7 AOE 6 | . . 1 . . . . 5 . Classes Destroyed 17 | 2 3 3 2 . 2 3 1 1 Worker 2 | . . . . . . 1 . 1 Builder 1 | . . . . . . . . 1 Tunneler 3 | 2 . . . . . . . 1 Hauler 7 | . 1 2 1 . . . . 3 Recycler 3 | 1 . . . . . . . 2 Mechanic 1 | . . . . . . 1 . . Operator 2 | . . . 1 . . 1 . . Watcher 3 | . . 2 . . . 1 . . Swarmer 8 | . 3 3 . . . . 2 . Grunt 44 | . 7 13 7 . 9 . 6 2 Brawler 2 | . . . 1 . . . 1 . Duelist 4 | . . 3 . . 1 . . . Sentry 7 | . . 3 3 . . . 1 . Specialist 4 | . . . . . 4 . . . Hunter 5 | . . . . . . 3 2 . Programmer 8 | . . . . . . . 3 5 Heavy 1 | . . . . . 1 . . . Best Kill Streak 6 | 2 5 5 4 . 5 2 6 2 Combat Bots Only 6 | . 5 5 4 . 5 1 6 2 Max Kills in Single Turn 2 | 1 2 2 1 . 1 1 2 2 Gunslinging 1 | . . 1 . . . . . . Exploded 2 | . . 1 . . . . 2 . Melee 1 | . . 1 1 . . . . . Uniques/NPCs Destroyed . | . . . . . . . . . Combat | -11 -10 -9 -8 -7 -7 -6 -6 -6 -------- Run | Yrd Mat Mat Mat Fac DSF Fac Gar Fac Hostile Shots Fired 626 | . 26 116 50 . 80 138 159 57 Missed 176 | . 10 36 13 . 24 30 46 17 Hits 450 | . 16 80 37 . 56 108 113 40 Melee 7 | . . 3 . . 3 . 1 . Projectile 443 | . 16 77 37 . 53 108 112 40 AOE 2 | . . . . . . . 2 . Critical Strikes 16 | . . 2 1 . 4 5 2 2 Actively Blocked 3 | . . . . . . . 1 2 Part Disruptions 1 | . . . . . . . 1 . Damage Taken 7034 | . 186 1003 539 . 977 1673 2034 622 Core 1142 | . 25 53 73 . 132 325 429 105 Absorbed by Shields 316 | . . . 24 . 196 96 . . Core Remaining (%) 88 | 100 90 86 86 . 81 . . . Volleys Fired 285 | 7 25 56 . . 35 18 82 62 Largest 2 | 2 2 2 . . 2 2 2 1 Hottest 90 | 80 90 90 . . 80 80 80 56 Shots Fired 444 | 14 50 111 . . 70 28 109 62 Gun 75 | 14 26 25 . . . . 10 . Cannon 317 | . 24 86 . . 70 28 67 42 Launcher 7 | . . . . . . . 7 . Special 45 | . . . . . . . 25 20 Kinetic 331 | . 24 94 . . 70 28 73 42 Thermal 26 | 7 4 11 . . . . 4 . Explosive 7 | . . . . . . . 7 . Electromagnetic 35 | 7 22 6 . . . . . . Robot Hit Streak 17 | 6 11 7 . . 7 4 12 17 Robot Miss Streak 5 | 1 3 5 . . 3 4 4 2 Penetration Max 1 | . . . . . . . . 1 Secondary Targets 3 | . 2 1 . . . . . . Max Gunslinging Chain 1 | . 1 1 . . . . . . Shots Hit Robots 360 | 9 37 76 41 . 47 28 72 50 Core Hits 141 | 4 18 30 6 . 25 7 34 17 Critical Kills 17 | . . 2 1 . . 1 . 13 Critical Parts Destroyed 24 | . . 1 5 . . 2 2 14 Critical Strikes 57 | . 2 9 6 . 4 4 4 28 Burn 5 | . . 3 . . . . 2 . Destroy 29 | . . 2 . . . . . 27 Blast 10 | . 2 3 . . 4 1 . . Smash 13 | . . 1 6 . . 3 2 1 Melee Attacks 126 | . . 14 48 . 3 22 30 9 Impact 126 | . . 14 48 . 3 22 30 9 Slashing . | . . . . . . . . . Piercing . | . . . . . . . . . Sneak Attacks 15 | . . . 3 . 1 3 3 5 Combat Hostiles 3 | . . . . . 1 . 2 . Follow-up Attacks 9 | . . 3 6 . . . . . Damage Inflicted 9503 | 97 572 1535 1494 . 1498 952 2426 929 Guns 725 | 97 271 241 . . . . 116 . Cannons 4458 | . 301 931 . . 1374 300 913 639 Explosions 1083 | . . 20 . . . . 1063 . Melee 3221 | . . 327 1494 . 124 652 334 290 Ramming 16 | . . 16 . . . . . . Kinetic 4573 | . 301 1004 . . 1374 300 955 639 Thermal 256 | 32 31 119 . . . . 74 . Explosive 1063 | . . . . . . . 1063 . Electromagnetic 374 | 65 240 69 . . . . . . Impact 3221 | . . 327 1494 . 124 652 334 290 Slashing . | . . . . . . . . . Piercing . | . . . . . . . . . Highest Corruption 8 | . 1 . 3 . . . 6 8 Average Corruption 5 | . 1 . 3 . . . 4 7 Corruption Purged . | . . . . . . . . . Corruption Blocked . | . . . . . . . . . Effects 106 | . 1 . 5 . . . 56 44 Message Errors 26 | . 1 . 1 . . . 13 11 Matter Fused 26 | . . . 1 . . . 17 8 Heat Flow Errors 20 | . . . 2 . . . 11 7 Energy Discharges 13 | . . . 1 . . . 7 5 Parts Rejected 2 | . . . . . . . . 2 Parts Fused 1 | . . . . . . . . 1 Data Loss (minor) 9 | . . . . . . . 5 4 Data Loss (major) 3 | . . . . . . . 1 2 Misfires 4 | . . . . . . . 2 2 Weapon Failures 2 | . . . . . . . . 2 Overload Shots . | . . . . . . . . . Overflow Damage 832 | . . 89 293 . 17 226 158 49 Projectiles 38 | . . . . . . . 24 14 Explosions 39 | . . . . . . . 39 . Melee 755 | . . 89 293 . 17 226 95 35 Knockbacks 43 | . 2 11 3 . 13 4 6 4 Impact 7 | . . 1 3 . . 2 1 . Kinetic 32 | . 2 8 . . 12 2 4 4 Secondary 4 | . . 2 . . 1 . 1 . Self-Inflicted Damage 21 | . . 6 . . . . 15 . Shots 2 | . . 1 . . . . 1 . Rammed . | . . . . . . . . . Targets Rammed 2 | . . 2 . . . . . . Kicked 2 | . . 2 . . . . . . Crushed . | . . . . . . . . . Highest Temperature 271 | 90 231 237 136 . 54 . 214 271 Average Temperature 76 | 40 75 71 58 . 18 . 91 114 Received Heat Transfer 1316 | . 87 438 266 . 294 . 192 39 Siege Activations . | . . . . . . . . . Martial Activations . | . . . . . . . . . Shielding Activations . | . . . . . . . . . Robots Disrupted . | . . . . . . . . . Combat Hostiles . | . . . . . . . . . Robots Corrupted 12 | . . 2 5 . 1 3 1 . Combat Hostiles 10 | . . 2 5 . 1 2 . . Parts Fried 18 | 1 1 1 9 . . 5 1 . Impact Corruptions 36 | . . 5 14 . 1 9 6 1 Robots Melted . | . . . . . . . . . Combat Hostiles . | . . . . . . . . . Parts Melted . | . . . . . . . . . Heat Transferred 890 | 75 75 444 . . . . 296 . Parts Sabotaged . | . . . . . . . . . Parts Stolen . | . . . . . . . . . Parts Stripped . | . . . . . . . . . Power Chain Reactions 1 | . . 1 . . . . . . Alert | -11 -10 -9 -8 -7 -7 -6 -6 -6 ------- Run | Yrd Mat Mat Mat Fac DSF Fac Gar Fac Maximum Alert Level 5 | . . 1 . . 1 . 5 4 Low Security (%) 38 | 100 100 47 100 100 45 100 17 . Level 1 16 | . . 52 . . 54 . 20 . Level 2 2 | . . . . . . . 6 . Level 3 27 | . . . . . . . 17 98 Level 4 6 | . . . . . . . 17 1 Level 5 7 | . . . . . . . 20 . High Security . | . . . . . . . . . Max Security . | . . . . . . . . . Sterilizations 1 | . . . . . 1 . . . Peak Influence 2021 | 10 168 278 161 28 320 169 2021 1124 Initial 1060 | . . 59 111 28 5 168 6 1060 Average 574 | . 44 172 106 22 189 57 872 955 Influence Increases 4830 | 15 287 656 297 . 350 158 2335 732 Destroy 0b10 Robot/C 2380 | . 200 440 220 . 300 60 760 400 Destroy 0b10 Robot/NC 125 | 15 5 20 10 . 10 20 5 40 Destroy Leader 370 | . 52 98 52 . 40 22 30 76 Allied During Kill 214 | . . . . . . . 137 77 Successful Hack 78 | . . 16 . . . 4 28 30 Disable Machine 135 | . . 45 . . . 15 30 45 Anti-Garrison Action 1150 | . . . . . . . 1150 . Destroy Structure 138 | . . 7 . . . 7 120 4 Partial Spotted 15 | . . . . . . . 15 . Lose Combat Pursuer 225 | . 30 30 15 . . 30 60 60 Influence Decreases 3748 | 15 144 533 499 56 38 469 323 1671 Entered New Map 1394 | . . 84 155 36 3 152 3 961 Time Decay 1586 | 15 144 376 294 20 . 187 . 550 Lost Part 385 | . . 10 50 . 35 130 160 . Lost Ally 320 | . . . . . . . 160 160 Purge Threat 63 | . . 63 . . . . . . Squads Dispatched 17 | . 2 1 1 . 2 1 . 10 Investigation 3 | . 1 1 . . . . . 1 Extermination 4 | . . . . . . . . 4 Reinforcement 9 | . 1 . 1 . 2 1 . 4 Assault 1 | . . . . . . . . 1 Garrison . | . . . . . . . . . Intercept . | . . . . . . . . . Searches Triggered . | . . . . . . . . . Construction Impeded 1 | . . . . . . . . 1 Haulers Reinforced 1 | . . . . . . . . 1 Active Scanning Responses . | . . . . . . . . . Cargo Convoy Interrupts . | . . . . . . . . . Stealth | -11 -10 -9 -8 -7 -7 -6 -6 -6 --------- Run | Yrd Mat Mat Mat Fac DSF Fac Gar Fac Distress Signals 5 | . . 3 . . . 1 1 . Communications Jammed . | . . . . . . . . . Distress Signals . | . . . . . . . . . Times Spotted 145 | . 15 29 11 . 13 8 41 28 Peak Tracking Total 7 | . 5 7 5 . 4 4 7 5 Tactical Retreats 12 | . 1 2 1 . . 1 4 3 Traps | -11 -10 -9 -8 -7 -7 -6 -6 -6 ------- Run | Yrd Mat Mat Mat Fac DSF Fac Gar Fac Traps Triggered 9 | . 1 . . . 1 . 5 2 Indirectly . | . . . . . . . . . Trap Hack Attempts . | . . . . . . . . . Triggered . | . . . . . . . . . Disarmed . | . . . . . . . . . Reprogrammed . | . . . . . . . . . Reused . | . . . . . . . . . Traps Extracted . | . . . . . . . . . Installed . | . . . . . . . . . Triggered . | . . . . . . . . . Machines | -11 -10 -9 -8 -7 -7 -6 -6 -6 ---------- Run | Yrd Mat Mat Mat Fac DSF Fac Gar Fac Machines Disabled 16 | . . 3 . . . 1 9 3 Max in Single Turn 1 | . . 1 . . . 1 1 1 Garrison Relay 6 | . . . . . . . 6 . Machines Repaired . | . . . . . . . . . Machines Dismantled . | . . . . . . . . . Machines Sabotaged . | . . . . . . . . . Overloaded Fab Kills . | . . . . . . . . . Hacking | -11 -10 -9 -8 -7 -7 -6 -6 -6 --------- Run | Yrd Mat Mat Mat Fac DSF Fac Gar Fac Machines Accessed 16 | . 2 5 . 1 . 2 3 3 Terminals 14 | . 2 5 . 1 . 1 3 2 Fabricators 1 | . . . . . . . . 1 Repair Stations . | . . . . . . . . . Recycling Units . | . . . . . . . . . Scanalyzers . | . . . . . . . . . Garrison Access 1 | . . . . . . 1 . . Total Hacks 44 | . 7 15 . 2 . 4 10 6 Successful 15 | . 1 6 . 1 . 1 3 3 Failed 29 | . 6 9 . 1 . 3 7 3 Catastrophic 6 | . . 1 . . . 1 4 . Database Lockouts . | . . . . . . . . . Manual 10 | . 1 7 . . . . . 2 Terminals 40 | . 7 15 . 2 . 2 10 4 Fabricators 2 | . . . . . . . . 2 Repair Stations . | . . . . . . . . . Recycling Units . | . . . . . . . . . Scanalyzers . | . . . . . . . . . Garrison Access 2 | . . . . . . 2 . . Terminal Hacks 9 | . . 5 . 1 . . 3 . Part Schematic 1 | . . 1 . . . . . . Prototype ID Bank 2 | . . 2 . . . . . . Open Door 1 | . . . . . . . 1 . Open DSF 1 | . . . . 1 . . . . Emergency Access Points 1 | . . . . . . . 1 . Unreport Threat 1 | . . 1 . . . . . . Hauler Manifests 1 | . . 1 . . . . . . Garrison Registry 1 | . . . . . . . 1 . Fabricator Hacks 1 | . . . . . . . . 1 Network Status 1 | . . . . . . . . 1 Repair Station Hacks . | . . . . . . . . . Recycling Unit Hacks . | . . . . . . . . . Scanalyzer . | . . . . . . . . . Garrison Access Hacks 1 | . . . . . . 1 . . Unlock Access 1 | . . . . . . 1 . . Unauthorized Hacks 4 | . 1 1 . . . . . 2 Terminals 4 | . 1 1 . . . . . 2 Botnet 3 | . 1 1 . . . . . 1 Operators 1 | . . . . . . . . 1 Fabricators . | . . . . . . . . . Repair Stations . | . . . . . . . . . Recycling Units . | . . . . . . . . . Scanalyzers . | . . . . . . . . . Garrison Access . | . . . . . . . . . Data Cores Recovered . | . . . . . . . . . Used . | . . . . . . . . . Hacking Detections 15 | . 2 4 . 1 . 2 3 3 Full Trace Events 5 | . 1 1 . . . . 3 . Feedback Events . | . . . . . . . . . Feedback Blocked . | . . . . . . . . . Robot Schematics Acquired . | . . . . . . . . . Robots Built . | . . . . . . . . . Authchips . | . . . . . . . . . Time . | . . . . . . . . . Total Robot Build Rating . | . . . . . . . . . Part Schematics Acquired 1 | . . 1 . . . . . . Parts Built . | . . . . . . . . . Authchips . | . . . . . . . . . Time . | . . . . . . . . . Total Part Build Rating . | . . . . . . . . . Parts Repaired . | . . . . . . . . . Time . | . . . . . . . . . Parts Recycled . | . . . . . . . . . Recycled Matter . | . . . . . . . . . Retrieved Matter . | . . . . . . . . . Retrieved Components . | . . . . . . . . . Parts Scanalyzed . | . . . . . . . . . Part Schematics Acquired . | . . . . . . . . . Parts Damaged . | . . . . . . . . . Bothacking | -11 -10 -9 -8 -7 -7 -6 -6 -6 ------------ Run | Yrd Mat Mat Mat Fac DSF Fac Gar Fac Used RIF Installer 2 | . . . . . . . 2 . Patrol Navigation 1 | . . . . . . . 1 . Robots Hacked 20 | . . . . . . . 9 11 Non-combat . | . . . . . . . . . Combat 20 | . . . . . . . 9 11 Robot Hacks Applied 21 | . . . . . . . 10 11 spike_heat 1 | . . . . . . . . 1 overload_power 1 | . . . . . . . . 1 disable_weapons 1 | . . . . . . . . 1 reboot_system 1 | . . . . . . . . 1 overwrite_iff 9 | . . . . . . . 5 4 formatsys_high 8 | . . . . . . . 5 3 Relay Couplers Released 19 | . . . . . . . 19 . Machine Destruction 19 | . . . . . . . 19 . Attached 13 | . . . . . . . 11 2 Fabnet Peak Effective % . | . . . . . . . . . Robots Rewired 5 | . . . . . . . 5 . Allies Hacked 2 | . . . . . . . 1 1 Hacks Repelled . | . . . . . . . . . Allies | -11 -10 -9 -8 -7 -7 -6 -6 -6 -------- Run | Yrd Mat Mat Mat Fac DSF Fac Gar Fac Total Allies 23 | . . . . . . . 16 7 Largest Group 7 | . . . . . . . 7 5 Highest-Rated Group 228 | . . . . . . . 228 148 Highest-Rated Ally 80 | . . . . . . . 80 47 Initial Warlord ECA Mod 18 | . . . . . . 9 9 . Total Orders . | . . . . . . . . . Ally Attacks 170 | . . . . . . . 93 77 Total Damage 4042 | . . . . . . . 2447 1595 Kills 39 | . . . . . . . 26 13 Allies Corrupted 2 | . . . . . . . 1 1 Allies Melted . | . . . . . . . . . Intel | -11 -10 -9 -8 -7 -7 -6 -6 -6 ------- Run | Yrd Mat Mat Mat Fac DSF Fac Gar Fac Active Infowar (turns) 3322 | . . . 578 40 385 453 1866 . Optics 2977 | . . . 578 40 385 453 1521 . Spoofing 345 | . . . . . . . 345 . Robot Analysis Total . | . . . . . . . . . Derelict Logs Recovered . | . . . . . . . . . Drone Launches . | . . . . . . . . . Drone Recoveries . | . . . . . . . . . Exploration | -11 -10 -9 -8 -7 -7 -6 -6 -6 ------------- Run | Yrd Mat Mat Mat Fac DSF Fac Gar Fac Turns Passed 7530 | 134 552 903 658 40 385 453 2825 1580 Spaces Moved 3906 | 87 254 399 398 36 109 355 1503 765 Core 124 | 16 . . . . . 37 71 . Treads 1782 | . 179 65 . . . . 773 765 Legs 1259 | 53 75 334 321 36 109 29 302 . Wheels 128 | 18 . . 77 . . 33 . . Hover 613 | . . . . . . 256 357 . Flight . | . . . . . . . . . Fastest Speed 50 | 50 120 120 112 112 112 50 56 157 Average Speed 134 | 100 161 130 121 112 161 72 138 157 Slowest Speed 350 | 120 190 190 135 112 187 135 350 157 Overloaded Moves . | . . . . . . . . . Propulsion Burnouts . | . . . . . . . . . Robots Hopped . | . . . . . . . . . Potential Cave-ins . | . . . . . . . . . Cave-ins Triggered . | . . . . . . . . . Exploration Rate (%) 37 | 4 44 34 30 2 90 11 96 24 Regions Visited 8 Branch Regions . Pre-discovered Areas . | . . . . . . . . . Known Exits Taken 2 | . . . . 1 . 1 . . Unknown Exits Taken 4 | 1 1 1 1 . . . . . Scrap Searched . | . . . . . . . . . Spaces Dug 5 | . . . . . . 3 . 2 Terrain Destroyed 68 | . . 3 . . . 10 53 2 Melee 5 | . . . . . . 3 . 2 Projectile 7 | . . . . . . 7 . . AOE 56 | . . 3 . . . . 53 . Terrain Rammed . | . . . . . . . . . Walls Destroyed . | . . . . . . . . . Machines Disabled . | . . . . . . . . . Actions | -11 -10 -9 -8 -7 -7 -6 -6 -6 --------- Run | Yrd Mat Mat Mat Fac DSF Fac Gar Fac Total 5606 | 119 350 660 508 37 246 488 2112 1086 Wait 880 | . 33 140 36 . 62 71 312 226 Move 3899 | 86 253 398 397 35 108 355 1502 765 Hop . | . . . . . . . . . Pick Up 112 | 15 19 16 12 1 11 3 27 8 Fast Attach 35 | . 2 3 1 . 3 5 18 3 Attach 58 | 6 3 8 10 . 5 12 13 1 Detach 3 | . . . . . . . 3 . Swap 40 | 2 4 8 4 . 4 . 10 8 Drop 83 | 3 11 18 6 1 10 2 28 4 Fire 285 | 7 25 56 . . 35 18 82 62 Melee 117 | . . 11 42 . 3 22 30 9 Ram . | . . . . . . . . . Kick 2 | . . 2 . . . . . . Crush . | . . . . . . . . . Escape Stasis 72 | . . . . . 5 . 67 . Rewire 20 | . . . . . . . 20 . Trap . | . . . . . . . . . Miscellaneous . | . . . . . . . . . Route ------- -11/Scrapyard -10/Materials (discovered 2 exits: *Mat x2) -9/Materials -8/Materials -7/Factory -7/DSF -6/Factory -6/Garrison (discovered 3 exits: *Fac x3) -6/Factory History --------- Turn | Location | Event 32 | -11/Scrapyard | Discovered new exit (range 16) 135 | -11/Scrapyard | Entered Materials 304 | -10/Materials | Build established: Mutant 435 | -10/Materials | Discovered new exit (range 13) 568 | -10/Materials | Discovered new exit (range 11) 687 | -10/Materials | Entered another Materials area 687 | -9/Materials | Evolved 2 slots: Propulsion x2 1436 | -9/Materials | Discovered new exit (range 14) 1590 | -9/Materials | Entered another Materials area 1590 | -8/Materials | Evolved 2 slots: Utility x2 1883 | -8/Materials | Discovered new exit (range 20) 2248 | -8/Materials | Entered Factory 2248 | -7/Factory | Evolved 2 slots: Utility x2 2287 | -7/Factory | Identified exit to DSF 2288 | -7/Factory | Entered DSF 2344 | -7/DSF | Additional patrols routed to DSF 2494 | -7/DSF | Lost 3 parts (2n1u) 2539 | -7/DSF | Sterilization system engaged 2559 | -7/DSF | Ambient heat levels rising (+10) 2569 | -7/DSF | Discovered new exit (range 16) 2574 | -7/DSF | Ambient heat levels rising (+10) 2589 | -7/DSF | Ambient heat levels rising (+10) 2604 | -7/DSF | Ambient heat levels rising (+10) 2619 | -7/DSF | Ambient heat levels rising (+10) 2634 | -7/DSF | Ambient heat levels rising (+10) 2649 | -7/DSF | Ambient heat levels rising (+10) 2664 | -7/DSF | Ambient heat levels rising (+10) 2673 | -7/DSF | Entered Factory 2673 | -6/Factory | Evolved 2 slots: Utility x2 2802 | -6/Factory | Lost 9 parts (4n2u3w) 2875 | -6/Factory | Lost 4 parts (2n1u1w) 3126 | -6/Factory | Identified exit to Garrison 3126 | -6/Factory | Entered Garrison 3254 | -6/Garrison | Core integrity fell below 50% 3350 | -6/Garrison | Installed Relay Interface Framework 3445 | -6/Garrison | Lost 3 parts (2n1u) 3511 | -6/Garrison | Triggered checkpoint 3539 | -6/Garrison | Garrison Relay disabled 3618 | -6/Garrison | Triggered checkpoint 3619 | -6/Garrison | Spotted B-75 Beast 3677 | -6/Garrison | Lost 5 parts (1p1u3w) 3745 | -6/Garrison | Build established: Bothacker-Mutant 3792 | -6/Garrison | Lost 3 parts (1n2u) 4149 | -6/Garrison | Discovered new exit (range 10) 4156 | -6/Garrison | Triggered checkpoint 4178 | -6/Garrison | Core integrity fell below 20% 4221 | -6/Garrison | Found embedded Infiltrators 4240 | -6/Garrison | Garrison Relay disabled 4321 | -6/Garrison | Discovered new exit (range 10) 4328 | -6/Garrison | Triggered checkpoint 4527 | -6/Garrison | Garrison Relay disabled 4686 | -6/Garrison | Triggered checkpoint 4752 | -6/Garrison | Expanded RIF knowledge: Patrol Navigation 4765 | -6/Garrison | Garrison Relay disabled 5182 | -6/Garrison | Garrison Relay disabled 5208 | -6/Garrison | Discovered new exit (range 10) 5288 | -6/Garrison | Triggered checkpoint 5316 | -6/Garrison | Triggered checkpoint 5333 | -6/Garrison | Garrison Relay disabled 5368 | -6/Garrison | Discovered new exit (range 22) 5368 | -6/Garrison | Discovered new exit (range 51) 5368 | -6/Garrison | Discovered new exit (range 80) 5669 | -6/Garrison | Found Relay Coupler [Proto] 5674 | -6/Garrison | Found Relay Coupler [Proto] 5951 | -6/Garrison | Entered Factory 5951 | -6/Factory | Accompanied by 5 allies 6453 | -6/Factory | Lost 4 allies 7001 | -6/Factory | First assault squad dispatched 7518 | -6/Factory | Lost 3 allies 7531 | -6/Factory | Destroyed by H-66 Slayer with Gauss Rifle Last Messages --------------- 07474_ System corrupted: FCS attempts to trigger Hyp. Mass Driver. 07474_ System corrupted: Hyp. Mass Driver misfires. 07474_ HV Slug penetrates Assembly Bed. 07474_ Assembly Bed disabled. 07482_ Acquired Imp. Hacking Suite. 07483_ Slug penetrates Wall. 07487_ ALERT: Hostile activity reported, dispatching reinforcements to area. 07489_ System corrupted: Heat flow error (+177). 07503_ HV Slug penetrates Wall. 07507_ KLCOWG>GPF%0>O7WLIZP/PLF<6XSA 07525_ System corrupted: Energy discharge (-59). 07528_ Penetrated by Slug. 07529_ Jacked H-66 Slayer... >>overload_power Initiated overload sequence, T-4 to critical power. 07531_ Slug penetrates Wall. Map ----- +----------------------------------------------------+ | ??????????????????????????????????????? | | ??????????????????????????????????????? | | ??????????????????????????????????????? | | ??????????????????????????????????????? | | ??? ?"" ??? #?????????????????????????? | | ??" """ """ #?????????????????????????? | | ??" """ """ #?????????????????????????? | | ??? #?????????????????????????? | | ??" """ """ #?????????????????????????? | | ??? """ """ #?????????????????????????? | | ?????"" """ #?????????????????????????? | | ??????? ??????????????????????????? | | #########+######+#####+######+#+#?????? | | #?????? | | #?????? | | * % #?????? | | !! #?????? | | [* [ #?????? | | #########+#####+########### #?????? | | ???????? ?# # #?????? | | ???????? ?# ! # #?????? | | ???????" ?# # #?????? | | ???????" ?# # #?????? | | ?????? ?# """ + % #?????? | | ??????"" ?# """" ! ; % #?????? | | ??????"" ?# """" [@; #?????? | | ???????" ?# """" [[[;!% #?????? | | ??????? ?# """" [[[;%= #?????? | | ??????? ?# """" # ! #?????? | | ??????? ?#? #!%= #?????? | | ?????????????##############%[ #?????? | | ??????????????????????????#=[ #?????? | | ??????????????????????????# #?????? | | ??????????????????????????? T?????? | | ??????????????????????????? #????? | | ??????????????????????????? h ##????? | | ??????????????????????????? #?????? | | ??????????????????????????? #?????? | | ??????????????????????????? #?????? | | ??????????????????????????? ???????? | | ??????????????????????????????????????? | | ??????????????????????????????????????? | | ???????????????????????????????H??????? | | ??????????##??????????????????????????? | | ############??????????????????????????? | | | #???????????????????????????? | | "" !#???????????????????????????? | | T" #???????????????????????????? | | #???????????????????????????? | | ! #???????????????????????????? | +----------------------------------------------------+ Best States ------------- Heat Dissipation 78 Energy Generation 23 Energy Capacity 290 Matter Stores 300 Matter Capacity 300 Sight Range 20 Terrain Scan Density 10 Armor Coverage 450 Evasion (%) 63 Targeting Accuracy 8 Recoil Reduction 4 Defensive Hacking 10 Relay Coupler Types 5 Relay Coupler Value 129 Authchip Count 5 Item Schematics ----------------- Imp. Aluminum Leg | -9/Materials | Hacked Robot Schematics ------------------ None Fabricated ------------ Nothing Repaired ---------- Nothing Alien Tech Used ----------------- None Achievements -------------- None Challenges ------------ None Game ------ Seed GravjetRemoteDoomcannon Manual? 0 Play Time 01:05:35 Cumulative 103.4 hours Start 2025.06.07 @ 08:48:17 End 2025.06.08 @ 03:46:35 Sessions 3 Manual Loads 0 Difficulty Rogue Special Mode None Game No. 122 Rogue 122 Adventurer 0 Explorer 0 Win Type - Total 2 Types 2/0/0/0/0/0/0/0/0/0 Lore% 65 Gallery% 57 Achievement% 53 Wizard Run 0 Options --------- Layout 2 ASCII 0 Keyboard 0 Movement Mouse Keybinds 0 Fullscreen 1 Font 32/SmallcapsGlow Map View 50x44 Zoom Use 0% Tactical HUD 1 Map Filters NONE Filters NONE Steam 1 RUN: 09e718ad-f249-443c-9758-39ec473d22b0